{"text_format":"3","workbook":"xlsx","n_sheets":1,"sheets":["Izvješće o troškovima"],"not_rendered":{"images":2,"defined_names":12},"read":"whole","date_system":"1900"}

{"sheet":"Izvješće o troškovima","index":0,"n_rows":24,"n_cols":13,"rows_kept":24,"merged":[[3,2,3,3],[3,5,3,6],[3,9,3,10],[4,2,4,3],[4,5,4,6],[4,9,4,10],[5,2,5,3],[5,5,5,6],[5,9,5,10],[6,2,6,3],[6,5,6,6],[6,9,6,10],[7,9,7,10]]}
[null,"IZVJEŠĆE O TROŠKOVIMA"]
[null,"CONTOSO, LTD"]
[null,"Ulica jorgovana 123, 10 000 Zagreb, Hrvatska"]
[null,"TELEFON",4255550121,null,"IME I PREZIME","Draženka Anić",null,null,"SVRHA","Godišnji prodajni seminar",null,"CIJENA PO KILOMETRU",{"v":2.5,"d":"2.50kn/milja"}]
[null,"FAKS",4255550122,null,"ODJEL","Prodaja",null,null,"POČETAK",{"$f":"IFERROR(MIN(Troškovi[DATUM]),\"\")","v":"2018-06-04"},null,"CIJENA ZA OBROK",{"v":150,"d":"150.00kn/dan"}]
[null,"E-POŠTA","info@contoso.com",null,"RADNO MJESTO","Glavni direktor",null,null,"ZAVRŠETAK",{"$f":"IFERROR(MAX(Troškovi[DATUM]),\"\")","v":"2018-07-04"},null,"CIJENA ZA HOTEL",{"v":1000,"d":"1,000.00kn/noć"}]
[null,"WEB","www.contoso.com",null,"RUKOVODITELJ","Tomislav Kralj",null,null,"PRIPREMIO:","Draženka Anić",null,"CIJENA TELEFONSKIH RAZGOVORA",{"v":50,"d":"50.00kn/dan"}]
[{"$nulls":8},"ODOBRIO:","Tomislav Kralj",null,"OSTALO CIJENA PO JEDINICI",{"v":250,"d":"250.00kn/dan"}]
[]
[null,"DATUM","RAČUN","OPIS","HOTEL","PRIJEVOZ","OBROCI","TELEFON","OSTALO","BROJAČ KILOMETARA – \nPOČETNO STANJE","BROJAČ KILOMETARA – \nZAVRŠNO STANJE","KILOMETRAŽA – \nUKUPNO","UKUPNO "]
[null,{"$f":"TODAY()","v":"2018-06-04"},"Prodaja","Kilometraža",{"$nulls":4},{"v":250,"d":"250.00 kn"},{"v":11378.5,"d":"11,378.5 mi."},{"v":11456.2,"d":"11,456.2 mi."},{"$f":"IF(COUNTA(Troškovi[[#This Row],[BROJAČ KILOMETARA – \nPOČETNO STANJE]:[BROJAČ KILOMETARA – \nZAVRŠNO STANJE]])=2,(Troškovi[[#This Row],[BROJAČ KILOMETARA – \nZAVRŠNO STANJE]]-Troškovi[[#This Row],[BROJAČ KILOMETARA – \nPOČETNO STANJE]])*MileageRate,\"\")","v":{"v":194.25000000000182,"d":"194.25 kn"}},{"$f":"IF(COUNTA(Troškovi[[#This Row],[DATUM]:[BROJAČ KILOMETARA – \nZAVRŠNO STANJE]])=0,\"\",SUM(Troškovi[[#This Row],[HOTEL]:[PRIJEVOZ]],Troškovi[[#This Row],[OBROCI]:[OSTALO]],((Troškovi[[#This Row],[BROJAČ KILOMETARA – \nZAVRŠNO STANJE]]-Troškovi[[#This Row],[BROJAČ KILOMETARA – \nPOČETNO STANJE]])*(MileageRate))))","v":{"v":444.2500000000018,"d":"444.25 kn"}}]
[null,{"$f":"TODAY()+30","v":"2018-07-04"},"Prodaja","Konvencija",{"v":2225,"d":"2,225.00 kn"},{"v":1125,"d":"1,125.00 kn"},{"v":100,"d":"100.00 kn"},null,{"v":25,"d":"25.00 kn"},{"v":11500,"d":"11,500.0 mi."},{"v":11560,"d":"11,560.0 mi."},{"$f":"IF(COUNTA(Troškovi[[#This Row],[BROJAČ KILOMETARA – \nPOČETNO STANJE]:[BROJAČ KILOMETARA – \nZAVRŠNO STANJE]])=2,(Troškovi[[#This Row],[BROJAČ KILOMETARA – \nZAVRŠNO STANJE]]-Troškovi[[#This Row],[BROJAČ KILOMETARA – \nPOČETNO STANJE]])*MileageRate,\"\")","v":{"v":150,"d":"150.00 kn"}},{"$f":"IF(COUNTA(Troškovi[[#This Row],[DATUM]:[BROJAČ KILOMETARA – \nZAVRŠNO STANJE]])=0,\"\",SUM(Troškovi[[#This Row],[HOTEL]:[PRIJEVOZ]],Troškovi[[#This Row],[OBROCI]:[OSTALO]],((Troškovi[[#This Row],[BROJAČ KILOMETARA – \nZAVRŠNO STANJE]]-Troškovi[[#This Row],[BROJAČ KILOMETARA – \nPOČETNO STANJE]])*(MileageRate))))","v":{"v":3625,"d":"3,625.00 kn"}}]
[{"$nulls":11},{"$f":"IF(COUNTA(Troškovi[[#This Row],[BROJAČ KILOMETARA – \nPOČETNO STANJE]:[BROJAČ KILOMETARA – \nZAVRŠNO STANJE]])=2,(Troškovi[[#This Row],[BROJAČ KILOMETARA – \nZAVRŠNO STANJE]]-Troškovi[[#This Row],[BROJAČ KILOMETARA – \nPOČETNO STANJE]])*MileageRate,\"\")","v":""},{"$f":"IF(COUNTA(Troškovi[[#This Row],[DATUM]:[BROJAČ KILOMETARA – \nZAVRŠNO STANJE]])=0,\"\",SUM(Troškovi[[#This Row],[HOTEL]:[PRIJEVOZ]],Troškovi[[#This Row],[OBROCI]:[OSTALO]],((Troškovi[[#This Row],[BROJAČ KILOMETARA – \nZAVRŠNO STANJE]]-Troškovi[[#This Row],[BROJAČ KILOMETARA – \nPOČETNO STANJE]])*(MileageRate))))","v":""}]
[{"$nulls":11},{"$f":"IF(COUNTA(Troškovi[[#This Row],[BROJAČ KILOMETARA – \nPOČETNO STANJE]:[BROJAČ KILOMETARA – \nZAVRŠNO STANJE]])=2,(Troškovi[[#This Row],[BROJAČ KILOMETARA – \nZAVRŠNO STANJE]]-Troškovi[[#This Row],[BROJAČ KILOMETARA – \nPOČETNO STANJE]])*MileageRate,\"\")","v":""},{"$f":"IF(COUNTA(Troškovi[[#This Row],[DATUM]:[BROJAČ KILOMETARA – \nZAVRŠNO STANJE]])=0,\"\",SUM(Troškovi[[#This Row],[HOTEL]:[PRIJEVOZ]],Troškovi[[#This Row],[OBROCI]:[OSTALO]],((Troškovi[[#This Row],[BROJAČ KILOMETARA – \nZAVRŠNO STANJE]]-Troškovi[[#This Row],[BROJAČ KILOMETARA – \nPOČETNO STANJE]])*(MileageRate))))","v":""}]
[{"$nulls":11},{"$f":"IF(COUNTA(Troškovi[[#This Row],[BROJAČ KILOMETARA – \nPOČETNO STANJE]:[BROJAČ KILOMETARA – \nZAVRŠNO STANJE]])=2,(Troškovi[[#This Row],[BROJAČ KILOMETARA – \nZAVRŠNO STANJE]]-Troškovi[[#This Row],[BROJAČ KILOMETARA – \nPOČETNO STANJE]])*MileageRate,\"\")","v":""},{"$f":"IF(COUNTA(Troškovi[[#This Row],[DATUM]:[BROJAČ KILOMETARA – \nZAVRŠNO STANJE]])=0,\"\",SUM(Troškovi[[#This Row],[HOTEL]:[PRIJEVOZ]],Troškovi[[#This Row],[OBROCI]:[OSTALO]],((Troškovi[[#This Row],[BROJAČ KILOMETARA – \nZAVRŠNO STANJE]]-Troškovi[[#This Row],[BROJAČ KILOMETARA – \nPOČETNO STANJE]])*(MileageRate))))","v":""}]
[{"$nulls":11},{"$f":"IF(COUNTA(Troškovi[[#This Row],[BROJAČ KILOMETARA – \nPOČETNO STANJE]:[BROJAČ KILOMETARA – \nZAVRŠNO STANJE]])=2,(Troškovi[[#This Row],[BROJAČ KILOMETARA – \nZAVRŠNO STANJE]]-Troškovi[[#This Row],[BROJAČ KILOMETARA – \nPOČETNO STANJE]])*MileageRate,\"\")","v":""},{"$f":"IF(COUNTA(Troškovi[[#This Row],[DATUM]:[BROJAČ KILOMETARA – \nZAVRŠNO STANJE]])=0,\"\",SUM(Troškovi[[#This Row],[HOTEL]:[PRIJEVOZ]],Troškovi[[#This Row],[OBROCI]:[OSTALO]],((Troškovi[[#This Row],[BROJAČ KILOMETARA – \nZAVRŠNO STANJE]]-Troškovi[[#This Row],[BROJAČ KILOMETARA – \nPOČETNO STANJE]])*(MileageRate))))","v":""}]
[{"$nulls":11},{"$f":"IF(COUNTA(Troškovi[[#This Row],[BROJAČ KILOMETARA – \nPOČETNO STANJE]:[BROJAČ KILOMETARA – \nZAVRŠNO STANJE]])=2,(Troškovi[[#This Row],[BROJAČ KILOMETARA – \nZAVRŠNO STANJE]]-Troškovi[[#This Row],[BROJAČ KILOMETARA – \nPOČETNO STANJE]])*MileageRate,\"\")","v":""},{"$f":"IF(COUNTA(Troškovi[[#This Row],[DATUM]:[BROJAČ KILOMETARA – \nZAVRŠNO STANJE]])=0,\"\",SUM(Troškovi[[#This Row],[HOTEL]:[PRIJEVOZ]],Troškovi[[#This Row],[OBROCI]:[OSTALO]],((Troškovi[[#This Row],[BROJAČ KILOMETARA – \nZAVRŠNO STANJE]]-Troškovi[[#This Row],[BROJAČ KILOMETARA – \nPOČETNO STANJE]])*(MileageRate))))","v":""}]
[{"$nulls":11},{"$f":"IF(COUNTA(Troškovi[[#This Row],[BROJAČ KILOMETARA – \nPOČETNO STANJE]:[BROJAČ KILOMETARA – \nZAVRŠNO STANJE]])=2,(Troškovi[[#This Row],[BROJAČ KILOMETARA – \nZAVRŠNO STANJE]]-Troškovi[[#This Row],[BROJAČ KILOMETARA – \nPOČETNO STANJE]])*MileageRate,\"\")","v":""},{"$f":"IF(COUNTA(Troškovi[[#This Row],[DATUM]:[BROJAČ KILOMETARA – \nZAVRŠNO STANJE]])=0,\"\",SUM(Troškovi[[#This Row],[HOTEL]:[PRIJEVOZ]],Troškovi[[#This Row],[OBROCI]:[OSTALO]],((Troškovi[[#This Row],[BROJAČ KILOMETARA – \nZAVRŠNO STANJE]]-Troškovi[[#This Row],[BROJAČ KILOMETARA – \nPOČETNO STANJE]])*(MileageRate))))","v":""}]
[{"$nulls":11},{"$f":"IF(COUNTA(Troškovi[[#This Row],[BROJAČ KILOMETARA – \nPOČETNO STANJE]:[BROJAČ KILOMETARA – \nZAVRŠNO STANJE]])=2,(Troškovi[[#This Row],[BROJAČ KILOMETARA – \nZAVRŠNO STANJE]]-Troškovi[[#This Row],[BROJAČ KILOMETARA – \nPOČETNO STANJE]])*MileageRate,\"\")","v":""},{"$f":"IF(COUNTA(Troškovi[[#This Row],[DATUM]:[BROJAČ KILOMETARA – \nZAVRŠNO STANJE]])=0,\"\",SUM(Troškovi[[#This Row],[HOTEL]:[PRIJEVOZ]],Troškovi[[#This Row],[OBROCI]:[OSTALO]],((Troškovi[[#This Row],[BROJAČ KILOMETARA – \nZAVRŠNO STANJE]]-Troškovi[[#This Row],[BROJAČ KILOMETARA – \nPOČETNO STANJE]])*(MileageRate))))","v":""}]
[{"$nulls":11},{"$f":"IF(COUNTA(Troškovi[[#This Row],[BROJAČ KILOMETARA – \nPOČETNO STANJE]:[BROJAČ KILOMETARA – \nZAVRŠNO STANJE]])=2,(Troškovi[[#This Row],[BROJAČ KILOMETARA – \nZAVRŠNO STANJE]]-Troškovi[[#This Row],[BROJAČ KILOMETARA – \nPOČETNO STANJE]])*MileageRate,\"\")","v":""},{"$f":"IF(COUNTA(Troškovi[[#This Row],[DATUM]:[BROJAČ KILOMETARA – \nZAVRŠNO STANJE]])=0,\"\",SUM(Troškovi[[#This Row],[HOTEL]:[PRIJEVOZ]],Troškovi[[#This Row],[OBROCI]:[OSTALO]],((Troškovi[[#This Row],[BROJAČ KILOMETARA – \nZAVRŠNO STANJE]]-Troškovi[[#This Row],[BROJAČ KILOMETARA – \nPOČETNO STANJE]])*(MileageRate))))","v":""}]
[{"$nulls":11},{"$f":"IF(COUNTA(Troškovi[[#This Row],[BROJAČ KILOMETARA – \nPOČETNO STANJE]:[BROJAČ KILOMETARA – \nZAVRŠNO STANJE]])=2,(Troškovi[[#This Row],[BROJAČ KILOMETARA – \nZAVRŠNO STANJE]]-Troškovi[[#This Row],[BROJAČ KILOMETARA – \nPOČETNO STANJE]])*MileageRate,\"\")","v":""},{"$f":"IF(COUNTA(Troškovi[[#This Row],[DATUM]:[BROJAČ KILOMETARA – \nZAVRŠNO STANJE]])=0,\"\",SUM(Troškovi[[#This Row],[HOTEL]:[PRIJEVOZ]],Troškovi[[#This Row],[OBROCI]:[OSTALO]],((Troškovi[[#This Row],[BROJAČ KILOMETARA – \nZAVRŠNO STANJE]]-Troškovi[[#This Row],[BROJAČ KILOMETARA – \nPOČETNO STANJE]])*(MileageRate))))","v":""}]
[null,"UKUPNI IZNOSI",null,null,{"$f":"SUBTOTAL(109,Troškovi[HOTEL])","v":{"v":2225,"d":"2,225.00 kn"}},{"$f":"SUBTOTAL(109,Troškovi[PRIJEVOZ])","v":{"v":1125,"d":"1,125.00 kn"}},{"$f":"SUBTOTAL(109,Troškovi[OBROCI])","v":{"v":100,"d":"100.00 kn"}},{"$f":"SUBTOTAL(109,Troškovi[TELEFON])","v":0},{"$f":"SUBTOTAL(109,Troškovi[OSTALO])","v":{"v":275,"d":"275.00 kn"}},{"$nulls":3},{"$f":"SUBTOTAL(109,Troškovi[[UKUPNO ]])","v":{"v":4069.250000000002,"d":"4,069.25 kn"}}]
[{"$nulls":11},"PREDUJAM",{"v":0,"d":"0.00 kn"}]
[{"$nulls":11},"UKUPNO",{"$f":"Troškovi[[#Totals],[UKUPNO ]]-Predujam","v":{"v":4069.250000000002,"d":"4,069.25 kn"}}]